bitfinex/quotes_ETHUSD_20260106
["timestamp","ask_amount","ask_price","bid_price","bid_amount"]
[1767707530124,0.001,3229.0,3228.2,0.91894342]
[1767707530325,0.001,3229.0,3228.3,1.40408415]
[1767707530652,0.001,3229.0,3228.4,0.91894342]
[1767707535771,0.001,3229.0,3228.1,0.02366646]
[1767707535935,0.97260482,3229.0,3228.1,0.02366646]
[1767707536875,0.97260482,3229.0,3228.1,3.12145964]
[1767707537197,0.97160482,3228.9,3228.2,0.39324596]
[1767707539989,0.97160482,3228.7,3228.2,0.39324596]
[1767707540306,0.97160482,3228.7,3228.1,0.002]
[1767707541986,4.06892254,3228.6,3228.1,0.002]
[1767707542191,7.16624026,3228.6,3228.1,0.002]
[1767707542499,7.16624026,3228.6,3227.7,4.72185082]
[1767707543361,0.97160482,3228.5,3227.7,0.91894342]
[1767707544091,0.97160482,3228.5,3228.1,0.002]
[1767707544296,3.0975096,3228.4,3228.1,0.002]
[1767707545614,4.78669032,3228.5,3228.1,0.002]
[1767707547238,0.71762403,3228.5,3228.1,0.92094342]
[1767707547385,0.001,3228.5,3228.1,0.92094342]
[1767707557620,0.001,3228.4,3228.1,0.92094342]
[1767707558354,0.001,3228.4,3228.1,0.002]
[1767707561528,0.96274983,3228.4,3228.1,0.002]
[1767707561726,1.75981195,3228.4,3228.1,0.002]
[1767707562665,4.85739719,3228.4,3228.1,0.002]
[1767707564266,1.75981195,3228.4,3228.1,0.002]
[1767707564630,0.79806212,3228.4,3228.1,0.002]
[1767707564864,3.89559667,3228.4,3228.1,0.002]
[1767707569296,0.001,3228.2,3228.1,0.002]
[1767707574998,0.001,3228.2,3228.1,0.96176437]
[1767707576033,0.001,3228.2,3228.1,0.9482655]
[1767707576512,0.001,3228.2,3227.8,0.96176437]
[1767707577792,0.001,3228.2,3227.8,1.36776537]
[1767707577996,0.96274983,3228.4,3227.8,0.408001]
[1767707581326,0.812,3228.6,3228.0,4.60250661]
[1767707581528,0.812,3228.6,3228.0,5.56205411]
[1767707581748,0.24684472,3228.6,3228.0,5.56205411]
[1767707581952,0.24684472,3228.6,3228.1,0.5593034]
[1767707582319,0.24684472,3228.6,3228.0,0.9595475]
[1767707582653,0.24684472,3228.6,3227.8,4.46562007]
[1767707582815,0.24684472,3228.6,3227.8,1.3675485]
[1767707583313,3.09717452,3228.8,3227.9,0.9595475]
[1767707584847,6.19422535,3228.9,3227.9,0.9595475]
[1767707585056,6.19422535,3228.9,3228.1,0.9595475]
[1767707587453,0.24684472,3228.8,3228.1,0.85155906]
[1767707589070,3.09722179,3228.7,3228.1,0.85155906]
[1767707589670,0.35483316,3228.6,3227.8,0.002]
[1767707590571,3.09722179,3228.7,3227.9,0.92157931]
[1767707591068,0.35483316,3228.8,3227.9,0.92157931]
[1767707592270,0.35483316,3228.7,3227.9,0.92157931]
[1767707593583,3.09831772,3228.6,3227.9,0.92157931]
[1767707593963,6.19563544,3228.6,3227.9,0.92157931]
[1767707594276,6.5504686,3228.6,3227.9,0.92157931]
[1767707594786,0.98248301,3228.3,3227.2,0.92157931]
[1767707595084,0.98248301,3228.3,3227.4,0.92157931]
[1767707595682,4.08018451,3228.2,3227.4,0.92157931]
[1767707595883,0.98248301,3228.1,3227.4,0.92157931]
[1767707596086,1.79448301,3228.0,3227.4,0.92157931]
[1767707597791,4.89241423,3228.0,3227.4,0.92157931]
[1767707598869,7.99034545,3228.0,3227.4,0.92157931]
[1767707599768,4.89241423,3228.0,3227.4,0.92157931]
[1767707602091,3.90993122,3228.0,3227.4,0.92157931]
[1767707604784,3.0978357,3228.1,3227.4,0.92157931]
[1767707605095,0.812,3228.1,3227.4,0.92157931]
[1767707606093,0.98248301,3229.1,3227.9,0.92157931]
[1767707606296,3.09689287,3229.1,3228.5,0.92157931]
[1767707606496,3.0967545,3229.2,3228.5,0.92157931]
[1767707606724,3.09688389,3229.1,3228.5,0.92157931]
[1767707606916,0.812,3229.3,3228.5,0.92157931]
[1767707607564,3.09680529,3229.2,3228.5,0.92157931]
[1767707607768,3.09677412,3229.2,3228.5,0.92157931]
[1767707608189,3.90868597,3229.3,3228.5,0.92157931]
[1767707612711,0.812,3229.3,3228.6,0.96545039]
[1767707612907,0.812,3229.3,3228.7,0.96545039]
[1767707613122,3.90864903,3229.3,3228.7,0.96545039]
[1767707614405,0.812,3229.3,3228.7,0.96545039]
[1767707614825,3.90865875,3229.3,3228.7,0.96545039]
[1767707619300,3.90865875,3229.3,3228.7,0.95902067]
[1767707621434,0.91978148,3229.2,3228.4,0.96545039]
[1767707621806,0.91978148,3229.2,3228.5,0.96545039]
[1767707623731,4.01658674,3229.2,3228.5,0.96545039]
[1767707626808,7.113392,3229.2,3228.5,0.96545039]
[1767707627013,0.91978148,3229.1,3228.1,0.96545039]
[1767707627733,4.01670907,3229.1,3228.2,0.96545039]
[1767707628444,0.91978148,3229.1,3228.2,0.96545039]
[1767707628805,4.01662343,3229.1,3228.2,0.96545039]
[1767707631337,0.002,3228.7,3228.2,0.96545039]
[1767707633909,0.002,3228.7,3228.3,0.96545039]
[1767707634109,0.002,3228.7,3228.4,1.37176448]
[1767707636765,0.002,3228.7,3228.4,0.96545039]
[1767707636913,0.002,3228.7,3228.4,0.96345039]
[1767707639855,0.002,3228.7,3228.2,0.96761385]
[1767707640478,0.9126528,3229.7,3228.7,0.96761385]
[1767707640643,0.9126528,3229.6,3228.6,4.5994971]
[1767707640847,0.9126528,3229.6,3228.7,0.46521377]
[1767707641460,0.9126528,3229.6,3228.7,3.56234878]
[1767707641649,3.09591992,3230.1,3229.1,0.91105996]
[1767707641857,0.37418939,3229.9,3229.1,0.90905996]
[1767707642077,0.37418939,3229.9,3229.2,0.55085571]
[1767707642446,0.37418939,3229.9,3228.9,0.91105996]
[1767707642660,0.37418939,3229.9,3228.8,0.811]
[1767707643275,0.37418939,3229.5,3228.8,0.811]
[1767707643477,0.37518939,3229.6,3228.9,0.91105996]
[1767707643781,0.37518939,3229.6,3228.8,0.811]
[1767707643970,0.37518939,3229.6,3228.9,0.53371321]
[1767707644774,0.37518939,3229.6,3228.9,3.63072424]
[1767707644977,0.001,3229.6,3229.0,0.91105996]
[1767707645181,0.002,3230.0,3229.6,0.91105996]
[1767707645352,0.37818939,3230.0,3228.9,6.72775418]
[1767707645679,0.37818939,3230.0,3229.0,0.84498141]
[1767707645972,3.47421673,3230.0,3229.0,1.75604137]
[1767707646178,0.37618939,3229.9,3229.1,0.91105996]
[1767707646579,0.811,3230.2,3229.4,0.91105996]
[1767707646748,0.811,3230.2,3229.2,0.91105996]
[1767707646954,0.811,3230.2,3229.4,0.91105996]
[1767707647355,3.90679459,3230.2,3229.4,0.91105996]
[1767707647785,0.811,3230.2,3229.4,0.91105996]
[1767707647955,3.90678875,3230.2,3229.4,0.91105996]
[1767707649792,0.811,3230.2,3229.4,0.91105996]
[1767707650365,3.90679259,3230.2,3229.5,0.91105996]
[1767707651875,0.811,3230.2,3229.5,0.91105996]
[1767707653194,0.811,3230.2,3229.6,0.91105996]
[1767707653488,0.002,3230.3,3229.6,0.91105996]
[1767707657489,0.002,3230.3,3229.7,0.91105996]
[1767707657694,0.002,3230.3,3229.9,0.91105996]
[1767707662098,0.002,3230.7,3229.8,4.03815226]
[1767707662268,0.002,3230.7,3229.9,0.91105996]
[1767707663171,3.09731865,3230.7,3229.9,0.91105996]
[1767707663364,3.09731865,3230.7,3230.0,1.31177902]
[1767707663570,0.002,3230.7,3230.0,1.30869306]
[1767707663794,0.002,3230.7,3230.1,0.91105996]
[1767707664174,0.002,3230.7,3230.1,0.90905996]
[1767707667599,0.002,3230.7,3230.2,0.91205996]
[1767707667770,0.002,3230.4,3230.2,0.001]
[1767707669773,3.09759187,3230.4,3230.2,0.001]
[1767707673311,3.48865106,3230.4,3230.2,0.001]
[1767707674812,6.58424293,3230.4,3230.2,0.001]
[1767707675176,3.48865106,3230.4,3230.2,0.001]
[1767707676220,6.58424293,3230.4,3230.2,0.001]
[1767707676393,6.58424293,3230.4,3229.3,0.001]
[1767707676394,0.002,3230.3,3229.3,0.001]
[1767707676598,0.002,3230.3,3229.3,0.4880456]
[1767707676916,0.002,3230.3,3229.3,0.001]
[1767707677892,0.002,3230.3,3229.3,0.96273961]
[1767707678242,0.002,3230.7,3229.6,0.96173961]
[1767707678403,0.002,3230.7,3229.8,0.96173961]
[1767707680502,0.002,3230.7,3229.9,0.96173961]
[1767707680703,0.002,3230.7,3230.1,0.96173961]
[1767707681118,0.002,3230.7,3230.1,0.96273961]
[1767707681421,0.002,3230.4,3230.1,0.96273961]
[1767707691028,0.002,3230.4,3230.1,0.001]
[1767707691401,0.813,3230.4,3230.1,0.001]
[1767707693131,6.1913754,3230.3,3230.1,0.001]
[1767707693532,3.0956877,3230.3,3230.1,0.001]
[1767707693828,6.89180431,3230.3,3230.1,0.001]
[1767707694208,3.79611661,3230.3,3230.1,0.001]
[1767707696036,6.89180431,3230.3,3230.1,0.001]
[1767707696415,6.89180431,3230.3,3229.5,0.99141589]
[1767707702248,3.79611661,3230.3,3229.5,0.99141589]
[1767707702424,3.0956877,3230.3,3229.6,0.97071433]
[1767707704749,3.0956877,3230.3,3229.8,0.001]
[1767707704952,3.0956877,3230.3,3229.8,0.97171433]
[1767707707957,3.0956877,3230.3,3229.8,0.97024475]
[1767707709031,6.1913754,3230.3,3229.8,0.97024475]
[1767707709226,6.89181294,3230.3,3229.8,0.97024475]
[1767707709431,3.79612524,3230.3,3229.8,0.97024475]
[1767707710132,6.89181294,3230.3,3229.8,0.97024475]
[1767707710343,3.79612524,3230.3,3229.8,0.97024475]
[1767707712762,6.89181294,3230.3,3229.8,0.97024475]
[1767707713379,3.79612524,3230.3,3229.8,0.97024475]
[1767707717472,0.002,3230.0,3229.8,0.97024475]
[1767707718171,0.002,3230.3,3229.6,0.97071433]
[1767707718369,0.002,3230.7,3230.1,4.5952981]
[1767707718573,3.0954475,3230.6,3230.1,4.5952981]
[1767707718872,3.0954475,3230.6,3230.0,0.97071433]
[1767707720554,3.09730442,3230.7,3230.0,0.97071433]
[1767707722687,0.002,3230.7,3230.2,0.97071433]
[1767707723684,3.0970767,3231.0,3230.2,0.97071433]
[1767707724556,0.002,3231.0,3230.2,0.97071433]
[1767707725555,0.002,3231.0,3230.4,4.5952981]
[1767707725763,0.002,3231.0,3230.6,0.97071433]
[1767707729989,0.002,3231.0,3230.5,0.45952981]
[1767707729990,3.0946339,3231.4,3231.0,0.97071433]
[1767707730161,0.91551146,3231.3,3230.5,0.45952981]
[1767707730361,0.91551146,3231.3,3230.4,0.97071433]
[1767707730569,0.91551146,3231.3,3230.3,0.001]
[1767707730903,0.91551146,3231.0,3230.3,0.001]
[1767707731062,0.91551146,3230.6,3229.7,0.811]
[1767707731263,0.002,3230.7,3229.8,1.12881979]
[1767707731759,3.09730442,3230.7,3229.8,1.12881979]
[1767707732160,4.05430606,3230.7,3229.8,1.12881979]
[1767707734488,7.14961048,3230.7,3229.8,1.12881979]
[1767707735196,0.95700164,3230.6,3229.8,1.12881979]
[1767707735496,0.95700164,3230.6,3229.8,0.17817143]
[1767707735795,0.95700164,3230.6,3229.5,3.09644411]
[1767707736174,0.95700164,3230.4,3229.5,3.09644411]
[1767707736374,0.95700164,3230.4,3229.5,4.04709247]
[1767707736696,3.09549605,3230.5,3229.6,0.95064836]
[1767707738787,6.19260884,3230.7,3229.6,0.95064836]
[1767707739097,6.19260884,3230.7,3229.8,0.95064836]
[1767707742964,6.19260884,3230.7,3229.8,0.95164836]
[1767707743219,0.002,3230.4,3229.8,0.95164836]
[1767707744019,0.002,3230.4,3229.3,0.001]
[1767707744020,0.95700164,3230.3,3229.3,0.001]
[1767707744219,0.95700164,3230.1,3229.3,0.001]
[1767707746206,3.09597523,3230.0,3229.3,0.001]
[1767707746690,3.09597523,3230.0,3229.3,0.95164836]
[1767707747080,3.09590242,3230.1,3229.3,0.95164836]
[1767707747399,4.86563775,3230.4,3229.5,0.95064836]
[1767707747713,0.002,3230.4,3229.5,0.95064836]
[1767707748215,0.002,3230.4,3229.6,0.95064836]
[1767707748410,0.002,3230.4,3229.8,0.95064836]
[1767707748911,0.002,3230.4,3229.5,0.95064836]
[1767707748912,0.95700164,3230.2,3229.5,0.95064836]
[1767707750472,3.09587938,3230.1,3229.5,0.95064836]
[1767707751536,0.95700164,3230.0,3229.3,0.001]
[1767707751825,0.95700164,3230.0,3229.3,0.40584427]
[1767707752196,0.95700164,3230.0,3229.3,1.35649263]
[1767707753225,4.86371556,3230.3,3229.4,0.95064836]
[1767707753429,7.95946702,3230.3,3229.4,0.95064836]
[1767707753607,4.86371556,3230.3,3229.4,0.95064836]
[1767707753810,4.86371556,3230.3,3229.5,1.35547647]
[1767707754209,7.95946702,3230.3,3229.5,1.35547647]
[1767707754440,7.95946702,3230.3,3229.5,0.95064836]
[1767707755344,4.86371556,3230.3,3229.5,0.95064836]
[1767707755513,0.002,3229.8,3229.5,0.95064836]
[1767707755693,0.95700164,3230.0,3229.3,3.09763728]
[1767707757531,0.95700164,3230.0,3229.3,0.001]
[1767707757710,0.95700164,3230.0,3229.4,0.30977422]
[1767707758228,0.002,3230.1,3229.5,0.98470114]
[1767707761007,0.002,3230.1,3229.6,0.98470114]
[1767707761208,0.93962094,3230.0,3229.4,3.40627885]
[1767707761435,0.002,3230.1,3229.5,0.93998944]
[1767707761707,0.002,3230.1,3229.6,1.37461627]
[1767707762025,0.93962094,3231.2,3230.3,0.93998944]
[1767707762223,0.93962094,3231.2,3229.8,0.9616559]
[1767707762423,0.93962094,3231.2,3229.8,0.93998944]
[1767707762736,0.93962094,3231.2,3229.8,1.75098944]
[1767707762933,0.93962094,3231.2,3229.9,0.17509894]
[1767707764136,0.93962094,3231.0,3230.0,3.09597523]
[1767707767338,0.93962094,3231.0,3230.0,4.03596467]
[1767707767531,0.93962094,3231.0,3230.1,0.93998944]
[1767707768823,0.002,3230.7,3230.1,0.93998944]
[1767707769023,0.002,3230.7,3230.3,0.93998944]
[1767707769471,0.002,3231.0,3230.3,3.0956663]
[1767707769740,0.002,3231.0,3230.4,0.93998944]
[1767707769939,0.811,3231.3,3230.9,0.93998944]
[1767707770142,1.71846057,3231.3,3230.4,0.9616559]
[1767707770444,0.90746057,3231.3,3230.6,0.9616559]
[1767707770609,0.002,3231.5,3230.7,0.93998944]
[1767707770817,0.002,3231.8,3231.3,0.93998944]
[1767707771009,0.002,3231.8,3231.0,0.02166646]
[1767707771316,0.002,3231.8,3231.0,0.9616559]
[1767707771516,0.813,3232.3,3231.2,0.9616559]
[1767707771712,3.90678654,3232.3,3231.2,0.9616559]
[1767707772140,7.00057308,3232.3,3231.2,0.9616559]
[1767707772838,7.00057308,3232.3,3231.2,0.93998944]
[1767707773017,10.09435962,3232.3,3231.2,0.93998944]
[1767707773423,10.09435962,3232.3,3230.9,0.93998944]
[1767707774020,10.09435962,3232.3,3231.0,0.93998944]
[1767707774021,7.00057308,3232.3,3231.0,0.93998944]
[1767707774220,10.09435962,3232.3,3230.7,0.93998944]
[1767707774443,10.09435962,3232.3,3230.9,0.93998944]
[1767707777017,10.09435962,3232.3,3231.0,0.93998944]
[1767707777129,7.00057308,3232.3,3231.0,0.93998944]
[1767707777329,3.09578654,3232.3,3231.0,0.93998944]
[1767707777540,0.811,3232.2,3231.0,0.9616559]
[1767707778461,3.90487604,3232.2,3231.2,0.93998944]
[1767707779040,6.99875208,3232.2,3231.2,0.93998944]
[1767707780242,3.90487604,3232.2,3231.2,0.93998944]
[1767707780775,3.90487604,3232.2,3231.3,0.93998944]
[1767707781064,3.90487604,3232.2,3231.5,0.93998944]
[1767707781257,0.002,3231.6,3231.5,0.93998944]
[1767707781457,6.99875208,3232.2,3231.5,0.93998944]
[1767707782057,3.90487604,3232.2,3231.5,0.93998944]
[1767707782969,6.99875208,3232.2,3231.5,0.93998944]
[1767707786760,6.99875208,3232.2,3231.0,0.93998944]
[1767707787475,6.99875208,3232.2,3231.0,3.09499974]
[1767707787670,6.99875208,3232.2,3231.2,0.93998944]
[1767707789981,13.18650416,3232.2,3230.9,0.93998944]
[1767707790183,4.59831898,3231.9,3230.9,0.93998944]
[1767707790890,9.28275264,3231.8,3230.9,0.93998944]
[1767707791253,0.811,3231.7,3230.9,0.93998944]
[1767707791580,1.00937526,3231.6,3230.4,0.99743047]
[1767707791881,1.00937526,3231.6,3230.3,0.001]
[1767707792402,1.00937526,3231.6,3230.4,0.99743047]
[1767707793200,6.18907628,3231.5,3230.6,0.001]
[1767707794403,6.18907628,3231.5,3230.6,0.99843047]
[1767707794605,0.72004515,3231.4,3230.6,0.99843047]
[1767707795703,3.09472967,3231.3,3230.6,0.99843047]
[1767707802109,3.81470347,3231.4,3230.6,0.99843047]
[1767707803579,6.90936179,3231.4,3230.6,0.99843047]
[1767707803980,3.81470347,3231.4,3230.6,0.99843047]
[1767707804508,6.90936179,3231.4,3230.6,0.99843047]
[1767707805512,6.90936179,3231.4,3230.9,0.001]
[1767707805717,0.69093618,3231.3,3230.9,0.001]
[1767707806608,3.78571125,3231.3,3230.9,0.001]
[1767707806911,3.09477507,3231.3,3230.9,0.99843047]
[1767707807412,3.09466601,3231.4,3230.9,0.99843047]
[1767707809111,6.19105941,3231.6,3230.9,0.99843047]
[1767707809808,3.096525,3231.6,3230.9,0.99843047]
[1767707811913,0.002,3231.6,3230.9,0.99843047]
[1767707812108,0.002,3231.6,3231.1,0.99743047]
[1767707814487,0.002,3231.6,3231.2,0.99743047]
[1767707817421,0.002,3231.6,3231.2,0.99843047]
[1767707818228,0.002,3231.9,3231.6,0.94137799]
[1767707818399,0.002,3231.9,3231.2,0.001]
[1767707818717,0.002,3231.9,3231.3,1.25097006]
[1767707818921,0.002,3231.9,3231.3,5.84495842]
[1767707819510,0.002,3231.9,3231.4,0.94137799]
[1767707819897,0.002,3232.0,3231.4,4.0359824]
[1767707820098,0.002,3232.0,3231.5,0.94137799]
[1767707820299,0.002,3232.0,3231.6,1.34497623]
[1767707820827,0.002,3232.0,3231.7,0.94137799]
[1767707821126,0.813,3232.3,3231.7,0.94137799]
[1767707821326,3.90677524,3232.3,3231.7,0.94137799]
[1767707821526,0.813,3232.3,3231.6,0.40359824]
[1767707821903,0.813,3232.3,3231.7,0.95698153]
[1767707822326,0.813,3232.3,3231.9,0.95698153]
[1767707822549,0.002,3232.3,3231.9,0.95698153]
[1767707824645,0.811,3232.9,3232.3,0.95698153]
[1767707824817,0.811,3232.9,3232.3,0.95498153]
[1767707826634,3.09329373,3232.8,3232.3,0.95498153]
[1767707826938,0.811,3232.9,3232.3,0.95498153]
[1767707827115,3.90422389,3232.9,3232.3,0.95498153]
[1767707827515,0.811,3232.9,3232.3,0.95498153]
[1767707827933,3.9042201,3232.9,3232.3,0.95498153]
[1767707828119,3.9042201,3232.9,3232.3,0.95298153]
[1767707828548,6.9974402,3232.9,3232.3,0.95298153]
[1767707828755,6.9974402,3232.9,3232.3,0.95098153]
[1767707828948,3.9042201,3232.9,3232.3,0.95098153]
[1767707829325,0.002,3232.6,3232.3,0.95098153]
[1767707831273,0.002,3232.9,3232.6,0.95698153]
[1767707834026,0.002,3232.9,3231.8,0.59545681]
[1767707834231,0.08675076,3232.9,3232.1,0.95698153]
[1767707834642,0.002,3232.9,3232.1,0.95698153]
[1767707834838,0.002,3232.9,3232.2,0.95698153]
[1767707836730,0.002,3232.9,3232.3,0.95698153]
[1767707838163,0.002,3232.9,3232.4,0.95698153]
[1767707838364,0.002,3233.2,3232.9,0.95698153]
[1767707838556,0.08675076,3233.2,3232.4,0.95698153]
[1767707838789,0.08675076,3233.2,3232.5,0.55509699]
[1767707839064,0.08675076,3233.2,3232.5,3.64865414]
[1767707839679,0.08675076,3233.2,3232.5,0.55509699]
[1767707839888,0.08675076,3233.2,3232.4,4.05064354]
[1767707840092,0.08675076,3233.2,3232.4,0.95698153]
[1767707840296,0.08675076,3233.2,3232.4,4.05065536]
[1767707840477,0.002,3233.2,3232.5,0.95698153]
[1767707840678,0.002,3233.2,3232.6,0.95698153]
[1767707841790,0.002,3232.9,3232.7,0.95698153]
[1767707842005,0.811,3233.6,3232.7,4.59398836]
[1767707842006,0.08475076,3233.3,3232.7,4.59398836]
[1767707842171,0.08475076,3233.5,3232.7,5.55096989]
[1767707842371,0.08475076,3233.5,3232.8,1.21429789]
[1767707843264,0.08475076,3233.5,3232.6,3.49852391]
[1767707843463,3.90355079,3233.6,3232.7,0.95698153]
[1767707843667,3.98830155,3233.6,3232.7,0.95698153]
[1767707845111,3.90355079,3233.6,3232.7,0.95698153]
[1767707846814,3.90355079,3233.6,3232.8,0.95698153]
[1767707847190,3.90355079,3233.6,3232.9,0.95698153]
[1767707852026,3.90355079,3233.6,3232.9,0.95498153]
[1767707853726,3.90355079,3233.6,3232.9,0.95598153]
[1767707853907,0.002,3233.3,3232.9,0.95598153]
[1767707865942,0.002,3233.0,3232.9,0.98691351]
[1767707866139,0.002,3233.3,3232.9,0.43995185]
[1767707866438,0.002,3233.3,3232.9,0.40901987]
[1767707867143,0.08875076,3233.3,3232.9,0.001]
[1767707871267,0.002,3233.3,3232.9,0.96233263]
[1767707875364,0.08875076,3233.6,3232.9,4.05550051]
[1767707876069,0.08875076,3233.6,3233.0,0.96133263]
[1767707876251,0.002,3233.6,3233.0,0.96133263]
[1767707876458,0.002,3233.6,3233.1,1.36688268]
[1767707878347,0.002,3233.3,3233.1,1.36688268]
[1767707878547,0.002,3233.6,3233.2,0.96133263]
[1767707883489,0.002,3233.6,3233.1,0.40555005]
[1767707883688,0.002,3233.6,3233.1,1.32710531]
[1767707883879,0.002,3233.6,3233.2,0.44201497]
[1767707884082,0.002,3233.6,3233.1,0.92155526]
[1767707884569,0.002,3233.6,3233.0,4.01465094]
[1767707887677,0.002,3233.6,3233.1,0.92155526]
[1767707889313,0.002,3233.6,3233.2,0.92155526]
[1767707890081,0.002,3233.3,3233.2,0.92155526]
[1767707890382,0.002,3233.6,3233.2,0.40146256]
[1767707890602,0.002,3233.6,3233.2,1.32301782]
[1767707892808,0.08675076,3233.9,3233.2,1.32301782]
[1767707892980,0.81,3234.1,3233.3,0.92155526]
[1767707893182,0.81,3234.1,3233.5,0.92155526]
[1767707893396,0.002,3234.2,3233.5,0.92155526]
[1767707895405,0.002,3234.2,3233.5,4.01417803]
[1767707895710,0.002,3234.2,3233.6,0.92155526]
[1767707895901,0.002,3234.2,3233.7,0.4014178]
[1767707896102,0.002,3234.2,3233.6,0.92155526]
[1767707897484,0.002,3234.2,3233.6,4.01408093]
[1767707898812,0.002,3234.2,3233.6,4.01407746]
[1767707899011,0.002,3234.2,3233.6,0.92155526]
[1767707899185,0.002,3234.2,3233.5,3.09257692]
[1767707899384,0.002,3234.2,3233.6,1.36712739]
[1767707899581,0.002,3234.2,3233.7,0.92155526]
[1767707899997,0.002,3234.2,3233.6,0.44557213]
[1767707900192,0.002,3234.2,3233.6,1.36712739]
[1767707900486,0.002,3234.2,3233.7,0.92155526]
[1767707900701,0.002,3234.2,3233.7,0.95247958]
[1767707900900,0.002,3234.6,3233.7,0.95247958]
[1767707902032,0.002,3234.6,3233.8,0.92155526]
[1767707902215,0.002,3234.6,3234.0,0.92155526]
[1767707902784,0.002,3234.3,3234.0,0.92155526]
[1767707905230,0.002,3234.3,3233.9,0.40448664]
[1767707905231,0.002,3234.6,3234.3,0.92155526]
[1767707905429,0.002,3234.6,3234.3,0.91955526]
[1767707909625,0.002,3234.6,3234.3,0.91755526]
[1767707911835,0.002,3234.6,3234.3,0.89155526]
[1767707914844,0.002,3234.6,3234.0,0.939763]
[1767707915056,0.002,3234.6,3234.1,1.3419631]
[1767707915263,0.11875076,3234.9,3234.2,3.09190257]
[1767707915544,0.11875076,3234.9,3234.3,0.938763]
[1767707918757,0.11875076,3234.9,3234.3,4.03061986]
[1767707919056,0.11875076,3234.9,3234.3,0.938763]
[1767707919357,0.11875076,3234.9,3234.4,0.40306564]
[1767707920336,0.002,3234.9,3234.5,0.938763]
[1767707922264,6.18085172,3235.8,3234.9,0.938763]
[1767707922469,0.11875076,3235.6,3234.5,0.938763]
[1767707924148,0.11875076,3235.6,3234.6,0.93795303]
[1767707924473,3.9007124,3235.5,3234.6,0.93795303]
[1767707925063,6.1814248,3235.5,3234.6,0.93795303]
[1767707925239,0.81,3235.4,3234.6,0.93795303]
[1767707925869,0.92956073,3235.4,3234.6,0.93795303]
[1767707926668,3.09090347,3235.3,3234.6,0.93895303]
[1767707926967,0.81,3235.2,3234.6,0.93895303]
[1767707928974,3.90101309,3235.2,3234.6,0.93895303]
[1767707930570,0.11956073,3235.1,3234.6,0.001]
[1767707931557,3.90101309,3235.2,3234.6,0.001]
[1767707931876,5.17823117,3235.2,3234.6,0.001]
[1767707932478,0.11956073,3235.0,3234.1,4.43394367]
[1767707932669,4.58265541,3235.1,3234.2,0.938763]
[1767707932872,0.11956073,3235.0,3234.1,3.09202305]
[1767707933050,0.11956073,3235.0,3234.1,3.80442279]
[1767707933448,0.11956073,3235.0,3234.2,3.09190877]
[1767707933754,5.05867044,3235.2,3234.2,4.03067177]
[1767707933951,0.11956073,3235.1,3234.3,0.938763]
[1767707934369,3.21065985,3235.1,3234.3,0.938763]
[1767707935076,4.49605128,3235.1,3234.3,0.938763]
[1767707935883,1.40495216,3235.1,3234.3,0.938763]
[1767707936079,0.11956073,3235.1,3234.3,0.938763]
[1767707936380,3.90106767,3235.2,3234.3,0.938763]
[1767707936580,3.90106767,3235.2,3234.3,4.03061531]
[1767707936782,3.90106767,3235.2,3234.3,0.938763]
[1767707936962,0.11956073,3235.1,3234.3,3.0918294]
[1767707937164,0.11956073,3235.1,3234.4,0.30918294]
[1767707937471,0.92956073,3235.1,3234.5,0.92809558]
[1767707937885,0.11956073,3235.1,3234.5,0.92809558]
[1767707938177,0.11956073,3235.1,3234.4,0.30918294]
[1767707938616,0.11956073,3235.1,3234.2,3.09193595]
[1767707938965,0.11956073,3235.0,3234.2,3.09193595]
[1767707939371,0.11956073,3235.1,3234.3,0.92809558]
[1767707940076,3.90105017,3235.2,3234.5,0.001]
[1767707940281,3.90105017,3235.2,3234.5,0.92909558]
[1767707940484,0.002,3234.8,3234.5,0.92909558]
[1767707940681,0.002,3234.8,3234.6,0.92809558]
[1767707940978,0.002,3235.1,3234.6,0.92809558]
[1767707941681,0.002,3235.1,3234.5,0.97338394]
[1767707942912,0.12356073,3235.1,3234.5,0.001]
[1767707943117,0.002,3235.1,3234.5,0.97338394]
[1767707943496,0.12356073,3235.1,3234.5,0.001]
[1767707945490,0.002,3235.1,3234.5,0.001]
[1767707946111,0.002,3235.1,3234.5,0.97338394]
[1767707949516,0.812,3235.1,3234.5,0.97338394]
[1767707950293,3.90316056,3235.1,3234.5,0.97338394]
[1767707953227,6.99432112,3235.1,3234.5,0.97338394]
[1767707953727,4.60279267,3235.1,3234.5,0.97238394]
[1767707954025,0.002,3234.8,3234.5,0.97238394]
[1767707956708,0.002,3234.8,3234.2,0.97238394]
[1767707959751,0.12356073,3234.8,3234.2,0.97238394]
[1767707960721,3.21497968,3234.8,3234.2,0.97238394]
[1767707960936,3.84560049,3234.8,3234.2,0.97238394]
[1767707962829,6.93701944,3234.8,3234.2,0.97238394]
[1767707963036,0.12156073,3234.7,3234.0,0.97338394]
[1767707963239,0.81,3234.6,3234.0,0.97338394]
[1767707965959,3.90157724,3234.6,3234.3,0.001]
[1767707966162,4.67629501,3234.6,3234.3,0.001]
[1767707966764,0.002,3234.5,3234.3,0.001]
[1767707969261,0.002,3234.5,3234.0,0.97338394]
[1767707971267,0.002,3234.5,3234.0,0.001]
[1767707971461,0.002,3234.5,3234.0,0.99920187]
[1767707971661,0.7911433,3234.5,3234.0,0.99920187]
[1767707972865,6.18352708,3234.4,3234.0,0.001]
[1767707977485,3.09176354,3234.4,3234.0,0.001]
[1767707978582,6.18352708,3234.4,3234.0,0.001]
[1767707979477,3.09176354,3234.4,3234.0,0.001]
[1767707979653,3.88238015,3234.4,3234.0,0.001]
[1767707979858,3.88238015,3234.4,3234.3,0.001]
[1767707981189,6.97414369,3234.4,3234.0,0.99920187]
[1767707981480,3.88238015,3234.4,3234.0,0.001]
[1767707981780,3.88238015,3234.4,3233.7,0.99820187]
[1767707981781,0.12156073,3234.3,3233.5,0.99820187]
[1767707981987,0.70957044,3234.2,3233.5,0.99820187]
[1767707982283,6.97414369,3234.4,3233.5,0.99820187]
[1767707982485,0.81,3234.1,3233.5,0.99820187]
[1767707984084,3.09214594,3234.0,3233.5,0.99820187]
[1767707986188,3.90209196,3234.1,3233.5,0.99820187]
[1767707986793,3.09209196,3234.1,3233.5,0.99820187]
[1767707986963,0.81,3234.0,3233.5,0.99820187]
[1767707987984,3.09209196,3234.1,3233.5,0.99820187]